[Event "*** Titled Tuesday Blitz AM"]
[Site "Chess.com"]
[Date "2020.01.07"]
[Round "8"]
[White "MartinMatthiesen"]
[Black "allvim"]
[Result "0-1"]
[WhiteElo "2554"]
[BlackElo "2361"]
[TimeControl "180+2"]
[EndTime "10:50:36 PST"]
[Termination "allvim won by checkmate"]

1. d4 {[%clk 0:01:03.8]} 1... Nf6 {[%clk 0:02:55.8]} 2. c4 {[%clk 0:01:02.1]}
2... g6 {[%clk 0:02:50.2]} 3. g3 {[%clk 0:01:02.5]} 3... Bg7 {[%clk 0:02:50.9]}
4. Bg2 {[%clk 0:01:03.8]} 4... d5 {[%clk 0:02:52.8]} 5. cxd5 {[%clk 0:01:04]}
5... Nxd5 {[%clk 0:02:53.3]} 6. Nf3 {[%clk 0:01:05.2]} 6... O-O {[%clk
0:02:53.7]} 7. O-O {[%clk 0:01:06.3]} 7... Nc6 {[%clk 0:02:55.1]} 8. Nc3 {[%clk
0:01:07.3]} 8... Nb6 {[%clk 0:02:53.5]} 9. e3 {[%clk 0:01:07.6]} 9... Bg4 {[%clk
0:02:48.3]} 10. h3 {[%clk 0:01:01.3]} 10... Bxf3 {[%clk 0:02:48.3]} 11. Qxf3
{[%clk 0:01:02.1]} 11... e5 {[%clk 0:02:50]} 12. d5 {[%clk 0:01:02.7]} 12... Ne7
{[%clk 0:02:49.2]} 13. e4 {[%clk 0:01:03.8]} 13... c6 {[%clk 0:02:50.1]} 14. Rd1
{[%clk 0:01:03.7]} 14... cxd5 {[%clk 0:02:50.9]} 15. exd5 {[%clk 0:01:04.8]}
15... f5 {[%clk 0:02:52.3]} 16. d6 {[%clk 0:01:04.4]} 16... Nc6 {[%clk 0:02:51]}
17. Be3 {[%clk 0:00:58.7]} 17... Kh8 {[%clk 0:02:37.5]} 18. Qe2 {[%clk
0:00:56.1]} 18... e4 {[%clk 0:02:37.3]} 19. Nd5 {[%clk 0:00:49.4]} 19... Ne5
{[%clk 0:02:31.3]} 20. Nc7 {[%clk 0:00:47.4]} 20... Nd3 {[%clk 0:02:28.8]} 21.
Nxa8 {[%clk 0:00:47]} 21... Qxa8 {[%clk 0:02:30.7]} 22. Rab1 {[%clk 0:00:43]}
22... Qd8 {[%clk 0:02:26.1]} 23. Rxd3 {[%clk 0:00:43.3]} 23... exd3 {[%clk
0:02:26.6]} 24. Qxd3 {[%clk 0:00:45.2]} 24... Rf6 {[%clk 0:02:22.2]} 25. Rd1
{[%clk 0:00:41.5]} 25... Rf7 {[%clk 0:01:24.1]} 26. b3 {[%clk 0:00:36.1]} 26...
Rd7 {[%clk 0:01:21.6]} 27. Bf4 {[%clk 0:00:34.6]} 27... g5 {[%clk 0:01:22.2]}
28. Bc1 {[%clk 0:00:33.8]} 28... Qf6 {[%clk 0:01:19.1]} 29. Ba3 {[%clk
0:00:30.4]} 29... h6 {[%clk 0:01:15.2]} 30. Re1 {[%clk 0:00:31.5]} 30... Rd8
{[%clk 0:01:11.3]} 31. Re7 {[%clk 0:00:30.6]} 31... Nc8 {[%clk 0:01:08.9]} 32.
Rxb7 {[%clk 0:00:28]} 32... Nxd6 {[%clk 0:01:10.1]} 33. Rxa7 {[%clk 0:00:28.3]}
33... Ne4 {[%clk 0:01:09.5]} 34. Qc2 {[%clk 0:00:27.9]} 34... Qd4 {[%clk
0:01:06.6]} 35. Bxe4 {[%clk 0:00:24]} 35... Qxa7 {[%clk 0:01:04.4]} 36. Bb2
{[%clk 0:00:14.6]} 36... fxe4 {[%clk 0:00:59.2]} 37. Bxg7+ {[%clk 0:00:14.6]}
37... Kxg7 {[%clk 0:00:59.9]} 38. Qxe4 {[%clk 0:00:15.4]} 38... Rd1+ {[%clk
0:00:57.6]} 39. Kh2 {[%clk 0:00:15.5]} 39... Qf7 {[%clk 0:00:57.9]} 40. Qe3
{[%clk 0:00:15.3]} 40... Qf6 {[%clk 0:00:55.6]} 41. a4 {[%clk 0:00:15.2]} 41...
Qc6 {[%clk 0:00:52.4]} 42. Qe7+ {[%clk 0:00:14.7]} 42... Kg8 {[%clk 0:00:49.4]}
43. g4 {[%clk 0:00:14.9]} 43... Qh1+ {[%clk 0:00:43.9]} 44. Kg3 {[%clk
0:00:15.6]} 44... Rg1# {[%clk 0:00:45.8]} 0-1

[Event "*** Titled Tuesday Blitz AM"]
[Site "Chess.com"]
[Date "2020.01.07"]
[Round "8"]
[White "capatl"]
[Black "boasovietica"]
[Result "0-1"]
[WhiteElo "2608"]
[BlackElo "2465"]
[TimeControl "180+2"]
[EndTime "10:50:37 PST"]
[Termination "boasovietica won by resignation"]

1. c4 {[%clk 0:03:01.9]} 1... c5 {[%clk 0:03:00.3]} 2. Nc3 {[%clk 0:03:03.2]}
2... Nc6 {[%clk 0:03:00.4]} 3. g3 {[%clk 0:03:04.7]} 3... e5 {[%clk 0:03:01.3]}
4. Bg2 {[%clk 0:03:06.2]} 4... g6 {[%clk 0:03:02.8]} 5. e3 {[%clk 0:03:04.2]}
5... Bg7 {[%clk 0:03:03.7]} 6. Nge2 {[%clk 0:03:05.4]} 6... Nge7 {[%clk
0:03:03.9]} 7. d3 {[%clk 0:03:04.1]} 7... d6 {[%clk 0:03:04.8]} 8. O-O {[%clk
0:03:05]} 8... O-O {[%clk 0:03:05.6]} 9. Rb1 {[%clk 0:03:06.3]} 9... Rb8 {[%clk
0:03:06.3]} 10. a3 {[%clk 0:03:07.7]} 10... a5 {[%clk 0:03:06.8]} 11. Nd5 {[%clk
0:03:06.8]} 11... b5 {[%clk 0:02:54.2]} 12. cxb5 {[%clk 0:02:15.3]} 12... Rxb5
{[%clk 0:02:53.8]} 13. Qa4 {[%clk 0:02:04.8]} 13... Rb8 {[%clk 0:02:54.2]} 14.
Bd2 {[%clk 0:02:05.3]} 14... Bd7 {[%clk 0:02:17.2]} 15. Nxe7+ {[%clk 0:02:01.1]}
15... Nxe7 {[%clk 0:02:17.5]} 16. Qxa5 {[%clk 0:02:00.6]} 16... Qc8 {[%clk
0:02:15.2]} 17. Qc3 {[%clk 0:01:46]} 17... e4 {[%clk 0:01:59.9]} 18. Qc2 {[%clk
0:01:30.5]} 18... exd3 {[%clk 0:01:28.3]} 19. Qxd3 {[%clk 0:01:31.2]} 19... Bb5
{[%clk 0:01:29]} 20. Qxd6 {[%clk 0:01:30.1]} 20... Rd8 {[%clk 0:01:24.9]} 21.
Qxe7 {[%clk 0:01:28.7]} 21... Rxd2 {[%clk 0:01:25.7]} 22. Nc3 {[%clk 0:01:07.1]}
22... Bxf1 {[%clk 0:01:24.4]} 23. Bxf1 {[%clk 0:01:09]} 23... Rbxb2 {[%clk
0:01:12.7]} 24. Rxb2 {[%clk 0:01:09.3]} 24... Rxb2 {[%clk 0:01:13.4]} 25. Nd5
{[%clk 0:01:08.6]} 25... Rb8 {[%clk 0:01:00.6]} 26. Bc4 {[%clk 0:01:07]} 26...
Qh3 {[%clk 0:00:55.8]} 27. Nb6 {[%clk 0:00:39.4]} 27... Qf5 {[%clk 0:00:43.9]}
28. Kg2 {[%clk 0:00:39.4]} 28... Bf8 {[%clk 0:00:39.8]} 29. Qc7 {[%clk
0:00:31.4]} 29... Rxb6 {[%clk 0:00:36.5]} 30. Bxf7+ {[%clk 0:00:29.5]} 30...
Qxf7 {[%clk 0:00:35.8]} 31. Qxb6 {[%clk 0:00:30.9]} 31... Qd5+ {[%clk
0:00:35.7]} 32. Kh3 {[%clk 0:00:31.5]} 32... c4 {[%clk 0:00:36.5]} 33. a4 {[%clk
0:00:33]} 33... c3 {[%clk 0:00:32.7]} 34. Qc7 {[%clk 0:00:34.3]} 34... Qf5+
{[%clk 0:00:29.3]} 35. Kg2 {[%clk 0:00:34.7]} 35... Qe4+ {[%clk 0:00:28]} 36.
Kh3 {[%clk 0:00:34]} 36... Qf5+ {[%clk 0:00:27.9]} 37. Kg2 {[%clk 0:00:34.7]}
37... Qc5 {[%clk 0:00:29.3]} 38. Qb7 {[%clk 0:00:26.9]} 38... c2 {[%clk
0:00:27.6]} 39. Qb3+ {[%clk 0:00:28.1]} 39... Kg7 {[%clk 0:00:24.6]} 40. Qb2+
{[%clk 0:00:29.2]} 40... Kh6 {[%clk 0:00:25.4]} 41. Qxc2 {[%clk 0:00:30.9]}
41... Qxc2 {[%clk 0:00:25.4]} 0-1

[Event "*** Titled Tuesday Blitz AM"]
[Site "Chess.com"]
[Date "2020.01.07"]
[Round "8"]
[White "Megagigahiper3345"]
[Black "lestri"]
[Result "1-0"]
[WhiteElo "2462"]
[BlackElo "2589"]
[TimeControl "180+2"]
[EndTime "10:50:37 PST"]
[Termination "Megagigahiper3345 won by resignation"]

1. d4 {[%clk 0:03:01.9]} 1... d6 {[%clk 0:03:00.4]} 2. c4 {[%clk 0:03:01.7]}
2... e5 {[%clk 0:03:01.1]} 3. d5 {[%clk 0:03:03]} 3... a5 {[%clk 0:03:01.3]} 4.
Nc3 {[%clk 0:03:03.6]} 4... Na6 {[%clk 0:03:02.8]} 5. e4 {[%clk 0:03:04.9]} 5...
Nf6 {[%clk 0:03:03.1]} 6. Bd3 {[%clk 0:03:05.4]} 6... c6 {[%clk 0:03:03.3]} 7.
Bc2 {[%clk 0:03:06.6]} 7... cxd5 {[%clk 0:02:59.8]} 8. cxd5 {[%clk 0:03:06.8]}
8... Bd7 {[%clk 0:03:00.8]} 9. a4 {[%clk 0:03:04.2]} 9... Nc5 {[%clk 0:02:58.3]}
10. Nge2 {[%clk 0:03:03.6]} 10... Be7 {[%clk 0:02:57]} 11. Be3 {[%clk
0:03:00.2]} 11... Rc8 {[%clk 0:02:56.9]} 12. O-O {[%clk 0:02:57.3]} 12... Ng4
{[%clk 0:02:55.8]} 13. Bc1 {[%clk 0:02:55.5]} 13... Bg5 {[%clk 0:02:53.9]} 14.
h3 {[%clk 0:02:45.1]} 14... Bxc1 {[%clk 0:02:53.8]} 15. Qxc1 {[%clk 0:02:39]}
15... Nf6 {[%clk 0:02:53.8]} 16. Qe3 {[%clk 0:02:36.7]} 16... O-O {[%clk
0:02:53.6]} 17. Rab1 {[%clk 0:02:27.6]} 17... Qb6 {[%clk 0:02:53.3]} 18. Kh1
{[%clk 0:02:11.9]} 18... Rc7 {[%clk 0:02:46.1]} 19. f4 {[%clk 0:02:11.3]} 19...
Nxa4 {[%clk 0:02:44.1]} 20. Qg3 {[%clk 0:01:28.7]} 20... exf4 {[%clk 0:02:36.2]}
21. Qxf4 {[%clk 0:00:37.5]} 21... Nxc3 {[%clk 0:02:34.2]} 22. bxc3 {[%clk
0:00:39.4]} 22... Qc5 {[%clk 0:02:31.6]} 23. Qg3 {[%clk 0:00:32.7]} 23... Nh5
{[%clk 0:02:20.6]} 24. Qh4 {[%clk 0:00:32]} 24... g6 {[%clk 0:02:17.8]} 25. Bd3
{[%clk 0:00:29.4]} 25... Qe3 {[%clk 0:01:45.5]} 26. Rf3 {[%clk 0:00:30.3]} 26...
Qd2 {[%clk 0:01:45.7]} 27. Rbf1 {[%clk 0:00:31.8]} 27... Ba4 {[%clk 0:01:27.6]}
28. g4 {[%clk 0:00:28.9]} 28... Bd1 {[%clk 0:01:18.8]} 29. gxh5 {[%clk
0:00:20.2]} 29... Bxe2 {[%clk 0:01:18.8]} 30. Bxe2 {[%clk 0:00:17.5]} 30... Qxe2
{[%clk 0:01:19.2]} 31. hxg6 {[%clk 0:00:18.9]} 31... hxg6 {[%clk 0:01:17.6]} 32.
R1f2 {[%clk 0:00:19.8]} 32... Qe1+ {[%clk 0:01:16.1]} 33. Kg2 {[%clk 0:00:21.2]}
33... Re8 {[%clk 0:01:13.8]} 34. Rf4 {[%clk 0:00:16]} 34... Rce7 {[%clk
0:00:40.1]} 35. Qf6 {[%clk 0:00:16.6]} 35... Rd7 {[%clk 0:00:29.1]} 36. Rh4
{[%clk 0:00:14.5]} 1-0

[Event "*** Titled Tuesday Blitz AM"]
[Site "Chess.com"]
[Date "2020.01.07"]
[Round "8"]
[White "DanielNaroditsky"]
[Black "severomorskij"]
[Result "1/2-1/2"]
[WhiteElo "3077"]
[BlackElo "2899"]
[TimeControl "180+2"]
[EndTime "10:50:44 PST"]
[Termination "Game drawn by repetition"]

1. d4 {[%clk 0:03:01.9]} 1... Nf6 {[%clk 0:02:51.6]} 2. Nc3 {[%clk 0:03:03.2]}
2... d5 {[%clk 0:02:51.2]} 3. Bf4 {[%clk 0:03:04.9]} 3... Bf5 {[%clk 0:02:44.9]}
4. e3 {[%clk 0:03:06.2]} 4... e6 {[%clk 0:02:43.9]} 5. Nf3 {[%clk 0:03:07.6]}
5... Bd6 {[%clk 0:02:37.2]} 6. Ne5 {[%clk 0:03:08.5]} 6... h6 {[%clk 0:02:26.2]}
7. g4 {[%clk 0:02:53.9]} 7... Bh7 {[%clk 0:02:13.2]} 8. h4 {[%clk 0:02:55]} 8...
Ne4 {[%clk 0:01:56.2]} 9. Nxe4 {[%clk 0:02:27.6]} 9... Bxe4 {[%clk 0:01:58.1]}
10. f3 {[%clk 0:02:29.1]} 10... Bh7 {[%clk 0:01:56]} 11. g5 {[%clk 0:02:30]}
11... Nd7 {[%clk 0:01:44.8]} 12. gxh6 {[%clk 0:02:26.4]} 12... gxh6 {[%clk
0:01:44.1]} 13. Qd2 {[%clk 0:02:12.5]} 13... Nxe5 {[%clk 0:01:34.3]} 14. dxe5
{[%clk 0:02:10.5]} 14... Be7 {[%clk 0:01:35]} 15. O-O-O {[%clk 0:02:07.3]} 15...
h5 {[%clk 0:01:32.3]} 16. Rg1 {[%clk 0:01:29.2]} 16... c6 {[%clk 0:01:27.4]} 17.
Bg5 {[%clk 0:01:23.9]} 17... Qc7 {[%clk 0:01:14.7]} 18. Bxe7 {[%clk 0:01:16]}
18... Qxe7 {[%clk 0:01:14.1]} 19. Rg5 {[%clk 0:01:17.5]} 19... O-O-O {[%clk
0:01:02.4]} 20. Bd3 {[%clk 0:00:59.9]} 20... Bxd3 {[%clk 0:00:59.9]} 21. Qxd3
{[%clk 0:01:01.8]} 21... Kb8 {[%clk 0:00:44]} 22. Kb1 {[%clk 0:00:56.5]} 22...
a6 {[%clk 0:00:43.1]} 23. Rdg1 {[%clk 0:00:54.5]} 23... c5 {[%clk 0:00:42.5]}
24. c3 {[%clk 0:00:42.2]} 24... Ka7 {[%clk 0:00:33.7]} 25. f4 {[%clk 0:00:42.7]}
25... Ka8 {[%clk 0:00:26.1]} 26. Qd1 {[%clk 0:00:41.5]} 26... d4 {[%clk
0:00:17.8]} 27. exd4 {[%clk 0:00:09]} 27... cxd4 {[%clk 0:00:19.7]} 28. Qd3
{[%clk 0:00:06.1]} 28... dxc3 {[%clk 0:00:15.6]} 29. Qxc3 {[%clk 0:00:08]} 29...
Rc8 {[%clk 0:00:14.5]} 30. Qf3 {[%clk 0:00:09.6]} 30... Rhd8 {[%clk 0:00:09.5]}
31. a3 {[%clk 0:00:05.2]} 31... Rd2 {[%clk 0:00:10.1]} 32. R5g2 {[%clk
0:00:03.9]} 32... Qd7 {[%clk 0:00:10.4]} 33. Rxd2 {[%clk 0:00:04.3]} 33... Qxd2
{[%clk 0:00:11.8]} 34. Rg2 {[%clk 0:00:04.1]} 34... Qc1+ {[%clk 0:00:10.8]} 35.
Ka2 {[%clk 0:00:05.7]} 35... Qc4+ {[%clk 0:00:10.9]} 36. Kb1 {[%clk 0:00:07.4]}
36... Qc1+ {[%clk 0:00:09.8]} 37. Ka2 {[%clk 0:00:08.9]} 37... Qc4+ {[%clk
0:00:11.3]} 38. Kb1 {[%clk 0:00:09.4]} 38... Qc1+ {[%clk 0:00:12.3]} 1/2-1/2

[Event "*** Titled Tuesday Blitz AM"]
[Site "Chess.com"]
[Date "2020.01.07"]
[Round "8"]
[White "MarcoRiehle"]
[Black "OK97"]
[Result "0-1"]
[WhiteElo "2628"]
[BlackElo "2845"]
[TimeControl "180+2"]
[EndTime "10:50:46 PST"]
[Termination "OK97 won by resignation"]

1. d4 {[%clk 0:03:01.9]} 1... Nf6 {[%clk 0:03:00.3]} 2. Nf3 {[%clk 0:03:02.2]}
2... g6 {[%clk 0:03:01.6]} 3. Nbd2 {[%clk 0:03:02.1]} 3... Bg7 {[%clk
0:03:02.6]} 4. e4 {[%clk 0:03:03.6]} 4... d6 {[%clk 0:03:03.9]} 5. Bd3 {[%clk
0:03:04]} 5... O-O {[%clk 0:03:04.7]} 6. O-O {[%clk 0:03:04.4]} 6... Nc6 {[%clk
0:03:06.1]} 7. c3 {[%clk 0:03:05]} 7... e5 {[%clk 0:03:07.1]} 8. Re1 {[%clk
0:03:06.1]} 8... exd4 {[%clk 0:03:03.5]} 9. cxd4 {[%clk 0:03:05.3]} 9... Nd7
{[%clk 0:03:05.1]} 10. Nb3 {[%clk 0:03:01.1]} 10... a5 {[%clk 0:03:06.1]} 11.
Bg5 {[%clk 0:02:56.2]} 11... Qe8 {[%clk 0:03:01.6]} 12. Bb5 {[%clk 0:02:48.4]}
12... h6 {[%clk 0:02:55.4]} 13. Bh4 {[%clk 0:02:47.9]} 13... a4 {[%clk
0:02:55.1]} 14. Nc1 {[%clk 0:02:39.3]} 14... a3 {[%clk 0:02:56.4]} 15. b3 {[%clk
0:02:30.8]} 15... Ra5 {[%clk 0:02:51.4]} 16. Bf1 {[%clk 0:02:26.6]} 16... Nb6
{[%clk 0:02:34.4]} 17. h3 {[%clk 0:02:22.5]} 17... g5 {[%clk 0:02:35.5]} 18. Bg3
{[%clk 0:02:21.7]} 18... g4 {[%clk 0:02:36.9]} 19. hxg4 {[%clk 0:02:17.6]} 19...
Bxg4 {[%clk 0:02:38.8]} 20. e5 {[%clk 0:01:43.3]} 20... Bxf3 {[%clk 0:02:30.2]}
21. gxf3 {[%clk 0:01:40.6]} 21... dxe5 {[%clk 0:02:31.5]} 22. Nd3 {[%clk
0:01:37.3]} 22... Nxd4 {[%clk 0:02:14.6]} 23. b4 {[%clk 0:01:29]} 23... Rd5
{[%clk 0:02:09.4]} 24. Nf4 {[%clk 0:01:28.9]} 24... exf4 {[%clk 0:01:57.7]} 25.
Rxe8 {[%clk 0:01:30.8]} 25... Rxe8 {[%clk 0:01:59.3]} 26. Qc1 {[%clk 0:00:51.7]}
26... fxg3 {[%clk 0:01:57.1]} 27. Rb1 {[%clk 0:00:52.3]} 27... Nxf3+ {[%clk
0:01:52.8]} 28. Kg2 {[%clk 0:00:53]} 28... Ne1+ {[%clk 0:01:48.9]} 29. Kxg3
{[%clk 0:00:53.3]} 29... Rg5+ {[%clk 0:01:44.4]} 30. Kh3 {[%clk 0:00:46.2]}
30... Nf3 {[%clk 0:01:30.1]} 31. Bg2 {[%clk 0:00:33.1]} 31... Nh4 {[%clk
0:00:56.1]} 32. Qxc7 {[%clk 0:00:23.9]} 32... Nxg2 {[%clk 0:00:51.3]} 33. Qxb6
{[%clk 0:00:24.2]} 33... Nf4+ {[%clk 0:00:51.4]} 34. Kh2 {[%clk 0:00:21.5]}
34... Re2 {[%clk 0:00:47.4]} 35. Rf1 {[%clk 0:00:17.6]} 35... Be5 {[%clk
0:00:42.9]} 36. Qd8+ {[%clk 0:00:15.3]} 36... Kg7 {[%clk 0:00:42.9]} 37. Kh1
{[%clk 0:00:16.8]} 37... Rxa2 {[%clk 0:00:42.4]} 38. Rg1 {[%clk 0:00:09.2]}
38... Rxg1+ {[%clk 0:00:41.4]} 39. Kxg1 {[%clk 0:00:11.1]} 39... Ra1+ {[%clk
0:00:36.6]} 40. Kh2 {[%clk 0:00:11.6]} 40... Ne6+ {[%clk 0:00:37.9]} 0-1

[Event "*** Titled Tuesday Blitz AM"]
[Site "Chess.com"]
[Date "2020.01.07"]
[Round "8"]
[White "Hydrargyrum_Girl"]
[Black "BeanScreen"]
[Result "0-1"]
[WhiteElo "2227"]
[BlackElo "2390"]
[TimeControl "180+2"]
[EndTime "10:50:51 PST"]
[Termination "BeanScreen won by resignation"]

1. d4 {[%clk 0:03:00.2]} 1... d5 {[%clk 0:03:00.9]} 2. Nc3 {[%clk 0:03:01.3]}
2... Nf6 {[%clk 0:03:02.3]} 3. Bg5 {[%clk 0:03:02.8]} 3... Bf5 {[%clk 0:03:01]}
4. e3 {[%clk 0:03:03.3]} 4... Nbd7 {[%clk 0:03:01.9]} 5. Bd3 {[%clk 0:03:04.3]}
5... Bg6 {[%clk 0:03:03.4]} 6. Nf3 {[%clk 0:03:01.6]} 6... e6 {[%clk 0:03:04.8]}
7. O-O {[%clk 0:03:02.2]} 7... Bd6 {[%clk 0:03:06]} 8. Re1 {[%clk 0:02:59.6]}
8... c5 {[%clk 0:02:55.8]} 9. e4 {[%clk 0:02:27.2]} 9... cxd4 {[%clk 0:02:56.9]}
10. Nxd4 {[%clk 0:02:25.7]} 10... dxe4 {[%clk 0:02:33.7]} 11. Nxe4 {[%clk
0:02:20.3]} 11... Be5 {[%clk 0:02:20.6]} 12. Nxf6+ {[%clk 0:01:27.3]} 12... Bxf6
{[%clk 0:02:17.7]} 13. Bxg6 {[%clk 0:01:08.2]} 13... hxg6 {[%clk 0:02:15.4]} 14.
Bxf6 {[%clk 0:00:48.3]} 14... Nxf6 {[%clk 0:02:15.6]} 15. c3 {[%clk 0:00:39]}
15... O-O {[%clk 0:02:07.5]} 16. Qf3 {[%clk 0:00:39.4]} 16... Qd5 {[%clk
0:01:58.6]} 17. Qxd5 {[%clk 0:00:36.9]} 17... Nxd5 {[%clk 0:02:00.5]} 18. Rad1
{[%clk 0:00:28.9]} 18... Rfc8 {[%clk 0:02:00.9]} 19. Nb3 {[%clk 0:00:27.9]}
19... Rab8 {[%clk 0:01:58.6]} 20. Rd4 {[%clk 0:00:28.8]} 20... b5 {[%clk
0:01:57.4]} 21. Red1 {[%clk 0:00:26.8]} 21... Rc4 {[%clk 0:01:53.9]} 22. a3
{[%clk 0:00:25.5]} 22... Kf8 {[%clk 0:01:48.6]} 23. Kf1 {[%clk 0:00:24.9]} 23...
Ke7 {[%clk 0:01:49.6]} 24. Ke2 {[%clk 0:00:26.2]} 24... Nf4+ {[%clk 0:01:37.6]}
25. Kf3 {[%clk 0:00:19.9]} 25... Nd5 {[%clk 0:01:38.9]} 26. g3 {[%clk
0:00:20.5]} 26... Rh8 {[%clk 0:01:28.9]} 27. h4 {[%clk 0:00:21.3]} 27... Rb8
{[%clk 0:01:29]} 28. Ke2 {[%clk 0:00:18.9]} 28... Rb6 {[%clk 0:01:29.5]} 29. Kd3
{[%clk 0:00:20.1]} 29... Nf6 {[%clk 0:01:17.5]} 30. Rxc4 {[%clk 0:00:20]} 30...
bxc4+ {[%clk 0:01:18.9]} 31. Kxc4 {[%clk 0:00:21.3]} 31... Ng4 {[%clk
0:01:00.5]} 32. Rd2 {[%clk 0:00:21.9]} 32... Ne5+ {[%clk 0:01:01.8]} 33. Kd4
{[%clk 0:00:10.9]} 33... Nf3+ {[%clk 0:01:03.1]} 34. Ke3 {[%clk 0:00:10.5]}
34... Nxd2 {[%clk 0:01:04.5]} 35. Nxd2 {[%clk 0:00:11.3]} 35... Rxb2 {[%clk
0:01:05.7]} 36. Nc4 {[%clk 0:00:12.7]} 36... Rc2 {[%clk 0:01:05.2]} 37. a4
{[%clk 0:00:07.8]} 37... Rxc3+ {[%clk 0:01:06]} 38. Kd4 {[%clk 0:00:09.5]} 38...
Rf3 {[%clk 0:01:06.8]} 39. Ne5 {[%clk 0:00:08]} 39... Rxf2 {[%clk 0:01:05]} 40.
Nc6+ {[%clk 0:00:09.4]} 40... Kf6 {[%clk 0:01:06.5]} 41. Nxa7 {[%clk 0:00:10.9]}
41... Ra2 {[%clk 0:01:07.9]} 42. Nc6 {[%clk 0:00:08.4]} 42... Rxa4+ {[%clk
0:01:08.8]} 43. Ke3 {[%clk 0:00:10]} 43... Ra3+ {[%clk 0:01:08.3]} 44. Kf2
{[%clk 0:00:10.4]} 44... e5 {[%clk 0:01:09.9]} 45. Nb4 {[%clk 0:00:09.3]} 45...
e4 {[%clk 0:01:10]} 46. Nd5+ {[%clk 0:00:08.1]} 46... Ke5 {[%clk 0:01:11.1]} 47.
Nf4 {[%clk 0:00:08.3]} 47... Rf3+ {[%clk 0:01:11.1]} 0-1

[Event "*** Titled Tuesday Blitz AM"]
[Site "Chess.com"]
[Date "2020.01.07"]
[Round "8"]
[White "dianosky"]
[Black "DishonorOnYourCow"]
[Result "1-0"]
[WhiteElo "2368"]
[BlackElo "2228"]
[TimeControl "180+2"]
[EndTime "10:50:58 PST"]
[Termination "dianosky won by resignation"]

1. d4 {[%clk 0:03:01.9]} 1... Nf6 {[%clk 0:02:59.3]} 2. c4 {[%clk 0:03:02.7]}
2... g6 {[%clk 0:02:58.4]} 3. Nc3 {[%clk 0:03:03.8]} 3... d5 {[%clk 0:02:58.3]}
4. Bg5 {[%clk 0:03:05.1]} 4... Ne4 {[%clk 0:02:55.9]} 5. Nxe4 {[%clk 0:03:06.2]}
5... dxe4 {[%clk 0:02:55]} 6. Qd2 {[%clk 0:03:08.1]} 6... Bg7 {[%clk 0:02:53.5]}
7. e3 {[%clk 0:03:09.2]} 7... c5 {[%clk 0:02:47.7]} 8. d5 {[%clk 0:03:10.2]}
8... Nd7 {[%clk 0:02:03.2]} 9. Ne2 {[%clk 0:02:59.6]} 9... Ne5 {[%clk
0:02:00.2]} 10. Nc3 {[%clk 0:03:00.3]} 10... Bf5 {[%clk 0:01:56.2]} 11. Be2
{[%clk 0:02:52.6]} 11... h6 {[%clk 0:01:43.1]} 12. Bh4 {[%clk 0:02:51]} 12... g5
{[%clk 0:01:42]} 13. Bg3 {[%clk 0:02:52.3]} 13... Rc8 {[%clk 0:01:29.7]} 14. f3
{[%clk 0:02:37.9]} 14... exf3 {[%clk 0:01:28.2]} 15. gxf3 {[%clk 0:02:39.1]}
15... Qd7 {[%clk 0:01:19.8]} 16. h4 {[%clk 0:02:30.2]} 16... g4 {[%clk
0:01:13.8]} 17. f4 {[%clk 0:02:21.1]} 17... Nf3+ {[%clk 0:01:05.7]} 18. Bxf3
{[%clk 0:02:22.1]} 18... gxf3 {[%clk 0:01:07.6]} 19. e4 {[%clk 0:02:23.2]} 19...
Bg4 {[%clk 0:01:06.8]} 20. e5 {[%clk 0:02:23.9]} 20... Qf5 {[%clk 0:01:02.1]}
21. Kf2 {[%clk 0:02:19.8]} 21... h5 {[%clk 0:00:57.3]} 22. Rae1 {[%clk
0:02:17.4]} 22... Bh6 {[%clk 0:00:53.2]} 23. d6 {[%clk 0:02:11.3]} 23... Rd8
{[%clk 0:00:46.8]} 24. Nd5 {[%clk 0:01:55.3]} 24... exd6 {[%clk 0:00:38]} 25.
exd6+ {[%clk 0:01:53.5]} 25... Kf8 {[%clk 0:00:38.9]} 26. Ne7 {[%clk 0:01:50.1]}
26... Qf6 {[%clk 0:00:36.3]} 27. Rd1 {[%clk 0:01:39.4]} 27... Kg7 {[%clk
0:00:32]} 28. Rhe1 {[%clk 0:01:40.1]} 28... Rhe8 {[%clk 0:00:30]} 29. Qc3 {[%clk
0:01:36.2]} 29... Qxc3 {[%clk 0:00:27.6]} 30. bxc3 {[%clk 0:01:37.3]} 30... Be6
{[%clk 0:00:26.4]} 31. f5 {[%clk 0:01:33.6]} 31... Bxc4 {[%clk 0:00:24.2]} 32.
f6+ {[%clk 0:01:27.8]} 32... Kh7 {[%clk 0:00:21.3]} 33. Kxf3 {[%clk 0:01:28.5]}
33... Be6 {[%clk 0:00:20.8]} 34. a4 {[%clk 0:01:25.6]} 34... Bg4+ {[%clk
0:00:21.5]} 35. Kf2 {[%clk 0:01:25.8]} 35... Bxd1 {[%clk 0:00:22.2]} 36. Rxd1
{[%clk 0:01:27.6]} 36... a6 {[%clk 0:00:17.4]} 37. c4 {[%clk 0:01:28.4]} 37...
Bf8 {[%clk 0:00:16.8]} 38. Rd5 {[%clk 0:01:24.7]} 38... Bxe7 {[%clk 0:00:17.4]}
39. fxe7 {[%clk 0:01:23.5]} 39... Rd7 {[%clk 0:00:18]} 40. Rxh5+ {[%clk
0:01:24.8]} 40... Kg6 {[%clk 0:00:18.5]} 41. Rxc5 {[%clk 0:01:26.1]} 41... Kf6
{[%clk 0:00:17.2]} 42. Kf3 {[%clk 0:01:25.6]} 42... Ke6 {[%clk 0:00:18.2]} 43.
Rh5 {[%clk 0:01:21.7]} 43... Rxd6 {[%clk 0:00:16.1]} 44. Rh6+ {[%clk 0:01:21.1]}
44... f6 {[%clk 0:00:17.2]} 45. Bxd6 {[%clk 0:01:21.7]} 45... Kxd6 {[%clk
0:00:19.1]} 46. Rxf6+ {[%clk 0:01:23]} 46... Kxe7 {[%clk 0:00:20]} 47. Rb6
{[%clk 0:01:21.8]} 47... Rb8 {[%clk 0:00:18.5]} 48. h5 {[%clk 0:01:23.3]} 48...
Kd7 {[%clk 0:00:18.4]} 49. Kg4 {[%clk 0:01:24.2]} 49... Kc7 {[%clk 0:00:19.3]}
50. Rg6 {[%clk 0:01:25.5]} 50... Rd8 {[%clk 0:00:19.1]} 51. Kg5 {[%clk
0:01:24.5]} 51... Rd4 {[%clk 0:00:16.6]} 52. h6 {[%clk 0:01:26]} 52... Rd1
{[%clk 0:00:13.5]} 53. h7 {[%clk 0:01:25.5]} 53... Rg1+ {[%clk 0:00:14.2]} 54.
Kf6 {[%clk 0:01:26.8]} 54... Rh1 {[%clk 0:00:13.9]} 55. Kg7 {[%clk 0:01:28.6]}
1-0